Cogmind - Beta 15 @@@ ROGUE MODE // 2025.05.17 @ 10:17:50 Player: Cess183 Result: Destroyed by S-10 Pest with Light Assault Rifle Performance ------------- Evolutions (1) 500 Regions Visited (3) 600 Robots Destroyed (19) 95 Value Destroyed (445) 445 Prototype IDs (1) 20 Alien Tech Used (0) 0 Bonus (25) 25 TOTAL SCORE: 1685 Bonus ------- Follower Combat Kills 25 Cogmind --------- Core Integrity 0/400 Matter 222/300 Energy 160/160 System Corruption 0% Temperature Cool (5) Movement Core (1650) Ox32 Location -9/Mines Parts ------- > --- POWER (1) -------- Light Nuclear Core > --- PROPULSION (3) --- Aluminum Leg > --- UTILITY (3) ------ Huge Storage Unit Terrain Scanner Medium Armor Plating > --- WEAPON (2) ------- Autogun Autogun > --- INVENTORY (25) --- Ion Engine Ion Engine Ion Engine Light Ion Engine Aluminum Leg Aluminum Leg EM Shotgun Datajack Peak State ------------ > --- POWER ------------ Light Nuclear Core > --- PROPULSION ------- Aluminum Leg Wheel Compact Wheel > --- UTILITY ---------- Huge Storage Unit Terrain Scanner Medium Armor Plating > --- WEAPON ----------- Autogun Autogun > --- INVENTORY -------- Ion Engine Ion Engine Ion Engine Light Ion Engine Aluminum Leg Aluminum Leg EM Shotgun Datajack [Rating: 14] Favorites ----------- Power Ion Engine Engine Ion Engine Power Core Light Nuclear Core Propulsion Light Treads Treads Light Treads Leg Aluminum Leg Wheel Compact Wheel Flight Unit Improved Flight Unit Utility Small Storage Unit Device Seismic Detector Storage Small Storage Unit Protection Core Shielding Weapon Autogun Energy Gun Small Laser Ballistic Gun Autogun Launcher Grenade Launcher Special Melee Weapon Datajack Build | -11 -10 -9 -9 ------- Run | Yrd Mat Mat Min Slots Evolved 2 | . . 2 . Power . | . . . . Propulsion 1 | . . 1 . Utility 1 | . . 1 . Weapon . | . . . . Parts Attached 28 | 7 4 14 3 Power 7 | 1 2 4 . Engine 6 | 1 2 3 . Core 1 | . . 1 . Reactor . | . . . . Propulsion 8 | 2 . 4 2 Treads 2 | 2 . . . Leg 3 | . . 3 . Wheel 2 | . . . 2 Hover . | . . . . Flight 1 | . . 1 . Utility 6 | 2 . 3 1 Device 2 | 1 . . 1 Storage 2 | 1 . 1 . Processor . | . . . . Hackware . | . . . . Protection 2 | . . 2 . Artifact . | . . . . Weapon 7 | 2 2 3 . Energy Gun 1 | 1 . . . Energy Cannon . | . . . . Ballistic Gun 4 | 1 1 2 . Ballistic Cannon . | . . . . Launcher 1 | . 1 . . Special Weapon . | . . . . Impact Weapon . | . . . . Slashing Weapon . | . . . . Piercing Weapon . | . . . . Special Melee Weapon 1 | . . 1 . Unidentified Prototypes 1 | . . 1 . Parts Lost 13 | . 2 9 2 Power 2 | . . 2 . Propulsion 5 | . . 3 2 Utility 2 | . . 2 . Weapon 4 | . 2 2 . Highest Loss Streak 5 | . 1 5 2 To Critical Strikes . | . . . . Average Backups 4 | 1 4 4 7 Power 2 | . 1 2 4 Propulsion . | . . . 1 Utility . | . . . . Weapon . | . 1 . 1 Tool/Special . | . . . . Unused Backups 3 | . . . 3 Power 2 | . . . 2 Propulsion . | . . . . Utility . | . . . . Weapon 1 | . . . 1 Tool/Special . | . . . . Average Slot Usage (%) 75 | . 99 56 94 Engine 7 | . 14 5 . Core 2 | . . . 11 Treads 11 | . 28 4 . Leg 8 | . . 10 18 Wheel 1 | . . . 13 Flight 1 | . . 2 . Device 7 | . 14 3 6 Storage 12 | . 14 11 11 Protection 4 | . . 4 11 Ballistic Gun 14 | . 16 12 22 Launcher 3 | . 10 . . Peak Build Rating 14 | 7 7 13 14 Average Rating 7 | 5 6 6 13 On Entrance 6 | . 7 6 13 Naked Turns . | . . . . Heaviest Build 99 | 13 15 98 99 Greatest Support 40 | 40 40 40 30 Greatest Overweight (x) 6 | 1 . 4 6 Average Overweight (x) 1 | . . 1 3 Largest Inventory Capacity 25 | 8 8 25 25 Average Capacity 12 | 7 8 13 25 Most Carried 9 | 2 6 7 9 Average Carried 4 | 1 4 3 7 Final Capacity 25 | 8 8 25 25 Final Carried 8 | 1 5 7 8 Class Distribution -------------------- 74% | Mutant 25% | Scavenger-Mutant Dominant Class ---------------- Mutant | -10/Materials Mutant | -9/Materials Scavenger-Mutant | -9/Mines Resources | -11 -10 -9 -9 ----------- Run | Yrd Mat Mat Min Matter Collected 667 | 241 126 275 25 Remotely . | . . . . Salvage Created 616 | 22 191 378 25 Parts 41 | 1 14 22 4 Haulers Intercepted . | . . . . Recyclers Shooed . | . . . . Parts Field Recycled . | . . . . Retrieved Matter . | . . . . Parts Self-Destructed . | . . . . Prevented . | . . . . Kills | -11 -10 -9 -9 ------- Run | Yrd Mat Mat Min Combat Hostiles Destroyed 14 | . 5 9 . Guns 12 | . 3 9 . AOE 2 | . 2 . . Classes Destroyed 6 | 1 1 3 1 Worker 1 | . . 1 . Builder 1 | . . . 1 Tunneler 2 | 1 . . 1 Recycler 1 | . . 1 . Swarmer 4 | . . 4 . Grunt 10 | . 5 5 . Best Kill Streak 3 | 1 2 3 1 Combat Bots Only 3 | . 2 3 . Max Kills in Single Turn 2 | 1 2 1 1 Gunslinging . | . . . . Exploded 2 | . 2 . . Melee . | . . . . Uniques/NPCs Destroyed . | . . . . Combat | -11 -10 -9 -9 -------- Run | Yrd Mat Mat Min Hostile Shots Fired 236 | . 58 154 24 Missed 73 | . 9 59 5 Hits 163 | . 49 95 19 Projectile 163 | . 49 95 19 Damage Taken 1820 | . 605 1031 184 Core 479 | . 74 395 10 Absorbed by Shields . | . . . . Redirected to Shielding 46 | . . 46 . Core Remaining (%) 85 | 100 70 . . Volleys Fired 88 | 5 30 49 4 Largest 2 | 2 2 2 2 Hottest 60 | 60 50 60 46 Shots Fired 145 | 10 48 79 8 Gun 142 | 10 45 79 8 Cannon . | . . . . Launcher 3 | . 3 . . Special . | . . . . Kinetic 120 | 5 45 62 8 Thermal 22 | 5 . 17 . Explosive 3 | . 3 . . Electromagnetic . | . . . . Robot Hit Streak 8 | 3 8 6 5 Robot Miss Streak 6 | 2 5 6 1 Penetration Max . | . . . . Secondary Targets 2 | . . 2 . Max Gunslinging Chain 1 | . . 1 . Shots Hit Robots 79 | 6 27 40 6 Core Hits 33 | 2 15 14 2 Critical Kills . | . . . . Critical Parts Destroyed . | . . . . Critical Strikes . | . . . . Melee Attacks 3 | . . 3 . Impact . | . . . . Slashing . | . . . . Piercing . | . . . . Sneak Attacks 1 | . . 1 . Combat Hostiles . | . . . . Follow-up Attacks . | . . . . Damage Inflicted 981 | 67 352 482 80 Guns 821 | 67 203 471 80 Cannons . | . . . . Explosions 149 | . 149 . . Melee . | . . . . Ramming 11 | . . 11 . Kinetic 647 | 13 203 351 80 Thermal 174 | 54 . 120 . Explosive 149 | . 149 . . Electromagnetic . | . . . . Impact . | . . . . Slashing . | . . . . Piercing . | . . . . Highest Corruption . | . . . . Average Corruption . | . . . . Corruption Purged . | . . . . Corruption Blocked . | . . . . Overload Shots . | . . . . Overflow Damage 10 | . 10 . . Projectiles . | . . . . Explosions 10 | . 10 . . Melee . | . . . . Knockbacks . | . . . . Impact . | . . . . Kinetic . | . . . . Secondary . | . . . . Self-Inflicted Damage 40 | . 39 1 . Shots 1 | . 1 . . Rammed 1 | . . 1 . Targets Rammed 2 | . . 2 . Kicked 1 | . . 1 . Crushed . | . . . . Highest Temperature 348 | 20 22 348 10 Average Temperature 29 | 13 11 41 7 Received Heat Transfer 783 | . 294 441 48 Effects 1 | . . 1 . Matter Decay 1 | . . 1 . Siege Activations . | . . . . Martial Activations . | . . . . Shielding Activations . | . . . . Robots Disrupted . | . . . . Combat Hostiles . | . . . . Robots Corrupted . | . . . . Combat Hostiles . | . . . . Parts Fried . | . . . . Impact Corruptions . | . . . . Robots Melted . | . . . . Combat Hostiles . | . . . . Parts Melted . | . . . . Heat Transferred 400 | 125 . 275 . Parts Sabotaged . | . . . . Parts Stolen . | . . . . Parts Stripped . | . . . . Power Chain Reactions . | . . . . Alert | -11 -10 -9 -9 ------- Run | Yrd Mat Mat Min Maximum Alert Level . | . . . . Low Security (%) 100 | 100 100 100 100 Level 1 . | . . . . Level 2 . | . . . . Level 3 . | . . . . Level 4 . | . . . . Level 5 . | . . . . High Security . | . . . . Max Security . | . . . . Peak Influence 90 | 5 64 90 21 Initial 15 | . . 15 9 Average 12 | . 14 16 1 Influence Increases 440 | 5 148 256 31 Destroy 0b10 Robot/C 300 | . 100 180 20 Destroy 0b10 Robot/NC 25 | 5 . 10 10 Destroy Leader 50 | . 30 20 . Allied During Kill 1 | . . . 1 Destroy Structure 19 | . 18 1 . Lose Combat Pursuer 45 | . . 45 . Influence Decreases 440 | 5 110 268 57 Entered New Map 40 | . . 23 17 Time Decay 288 | 5 98 165 20 Lost Part 92 | . 12 80 . Lost Ally 20 | . . . 20 Squads Dispatched 2 | . 1 1 . Investigation 1 | . 1 . . Extermination . | . . . . Reinforcement 1 | . . 1 . Assault . | . . . . Garrison . | . . . . Intercept . | . . . . Searches Triggered . | . . . . Construction Impeded . | . . . . Haulers Reinforced . | . . . . Active Scanning Responses . | . . . . Cargo Convoy Interrupts . | . . . . Stealth | -11 -10 -9 -9 --------- Run | Yrd Mat Mat Min Distress Signals 1 | . . 1 . Communications Jammed . | . . . . Distress Signals . | . . . . Times Spotted 39 | . 11 21 7 Peak Tracking Total 6 | . 4 6 6 Tactical Retreats 2 | . . 2 . Traps | -11 -10 -9 -9 ------- Run | Yrd Mat Mat Min Traps Triggered 1 | . 1 . . Indirectly . | . . . . Trap Hack Attempts . | . . . . Triggered . | . . . . Disarmed . | . . . . Reprogrammed . | . . . . Reused . | . . . . Traps Extracted . | . . . . Installed . | . . . . Triggered . | . . . . Machines | -11 -10 -9 -9 ---------- Run | Yrd Mat Mat Min Machines Disabled . | . . . . Max in Single Turn . | . . . . Machines Repaired . | . . . . Machines Dismantled . | . . . . Machines Sabotaged . | . . . . Overloaded Fab Kills . | . . . . Hacking | -11 -10 -9 -9 --------- Run | Yrd Mat Mat Min Machines Accessed . | . . . . Terminals . | . . . . Fabricators . | . . . . Repair Stations . | . . . . Recycling Units . | . . . . Scanalyzers . | . . . . Garrison Access . | . . . . Total Hacks . | . . . . Successful . | . . . . Failed . | . . . . Catastrophic . | . . . . Database Lockouts . | . . . . Manual . | . . . . Terminals . | . . . . Fabricators . | . . . . Repair Stations . | . . . . Recycling Units . | . . . . Scanalyzers . | . . . . Garrison Access . | . . . . Terminal Hacks . | . . . . Fabricator Hacks . | . . . . Repair Station Hacks . | . . . . Recycling Unit Hacks . | . . . . Scanalyzer . | . . . . Garrison Access Hacks . | . . . . Unauthorized Hacks . | . . . . Terminals . | . . . . Fabricators . | . . . . Repair Stations . | . . . . Recycling Units . | . . . . Scanalyzers . | . . . . Garrison Access . | . . . . Data Cores Recovered . | . . . . Used . | . . . . Hacking Detections . | . . . . Full Trace Events . | . . . . Feedback Events . | . . . . Feedback Blocked . | . . . . Robot Schematics Acquired . | . . . . Robots Built . | . . . . Authchips . | . . . . Time . | . . . . Total Robot Build Rating . | . . . . Part Schematics Acquired . | . . . . Parts Built . | . . . . Authchips . | . . . . Time . | . . . . Total Part Build Rating . | . . . . Parts Repaired . | . . . . Time . | . . . . Parts Recycled . | . . . . Recycled Matter . | . . . . Retrieved Matter . | . . . . Retrieved Components . | . . . . Parts Scanalyzed . | . . . . Part Schematics Acquired . | . . . . Parts Damaged . | . . . . Bothacking | -11 -10 -9 -9 ------------ Run | Yrd Mat Mat Min Used RIF Installer . | . . . . Robots Hacked 1 | . . 1 . Non-combat . | . . . . Combat 1 | . . 1 . Robot Hacks Applied 1 | . . 1 . parse_system 1 | . . 1 . Relay Couplers Released . | . . . . Fabnet Peak Effective % . | . . . . Robots Rewired . | . . . . Allies Hacked . | . . . . Hacks Repelled . | . . . . Allies | -11 -10 -9 -9 -------- Run | Yrd Mat Mat Min Total Allies 2 | . . . 2 Largest Group 2 | . . . 2 Highest-Rated Group 45 | . . . 45 Highest-Rated Ally 31 | . . . 31 Total Orders . | . . . . Ally Attacks 5 | . . . 5 Total Damage 62 | . . . 62 Kills 1 | . . . 1 Allies Corrupted . | . . . . Allies Melted . | . . . . Intel | -11 -10 -9 -9 ------- Run | Yrd Mat Mat Min Active Infowar (turns) 959 | 6 537 272 144 Terrain 144 | . . . 144 Seismic 815 | 6 537 272 . Robot Analysis Total . | . . . . Derelict Logs Recovered 1 | . . . 1 Drone Launches . | . . . . Drone Recoveries . | . . . . Exploration | -11 -10 -9 -9 ------------- Run | Yrd Mat Mat Min Turns Passed 1790 | 128 537 899 226 Spaces Moved 915 | 67 270 449 129 Core 277 | 5 . 272 . Treads 424 | 62 270 92 . Legs 103 | . . 85 18 Wheels 111 | . . . 111 Hover . | . . . . Flight . | . . . . Fastest Speed 50 | 50 160 100 135 Average Speed 162 | 153 160 165 163 Slowest Speed 400 | 160 160 400 330 Overloaded Moves . | . . . . Propulsion Burnouts . | . . . . Robots Hopped . | . . . . Potential Cave-ins . | . . . . Cave-ins Triggered . | . . . . Exploration Rate (%) 24 | 4 30 29 33 Regions Visited 3 Branch Regions 1 Pre-discovered Areas 1 | . . . 1 Known Exits Taken . | . . . . Unknown Exits Taken 3 | 1 1 1 . Scrap Searched . | . . . . Spaces Dug . | . . . . Terrain Destroyed 22 | . 22 . . Melee . | . . . . Projectile . | . . . . AOE 22 | . 22 . . Terrain Rammed . | . . . . Walls Destroyed . | . . . . Machines Disabled . | . . . . Actions | -11 -10 -9 -9 --------- Run | Yrd Mat Mat Min Total 1088 | 81 336 531 140 Wait 33 | . 26 6 1 Move 912 | 66 269 448 129 Hop . | . . . . Pick Up 11 | 3 5 2 1 Fast Attach 17 | 5 . 11 1 Attach 8 | 2 1 3 2 Detach 5 | . . 3 2 Swap 5 | . 3 2 . Drop 4 | . 2 2 . Fire 88 | 5 30 49 4 Melee 3 | . . 3 . Ram 1 | . . 1 . Kick 1 | . . 1 . Crush . | . . . . Escape Stasis . | . . . . Rewire . | . . . . Trap . | . . . . Miscellaneous . | . . . . Route ------- -11/Scrapyard -10/Materials -9/Materials -9/Mines History --------- Turn | Location | Event 8 | -11/Scrapyard | Discovered new exit (range 15) 129 | -11/Scrapyard | Entered Materials 314 | -10/Materials | Build established: Mutant 557 | -10/Materials | Discovered new exit (range 12) 666 | -10/Materials | Entered another Materials area 666 | -9/Materials | Evolved 2 slots: Propulsion x1, Utility x1 919 | -9/Materials | Lost 5 parts (1p2n2w) 1028 | -9/Materials | Core integrity fell below 50% 1121 | -9/Materials | Core integrity fell below 20% 1481 | -9/Materials | Discovered new exit (range 12) 1565 | -9/Materials | Entered Mines 1570 | -9/Mines | Met a Derelict bent on vengeance 1622 | -9/Mines | Build established: Scavenger-Mutant 1791 | -9/Mines | Destroyed by S-10 Pest with Light Assault Rifle Last Messages --------------- Move into an ally to swap places with them. 01569_ T-07 Excavator is excavating. 01618_ T-07 Excavator destroyed. 01621_ U-05 Engineer lays Concrete. 01630_ Acquired Wheel. 01634_ Acquired 13 matter. 01636_ U-05 Engineer lays Concrete. 01639_ U-05 Engineer destroyed. 01643_ R-06 Scavenger collects Lgt. Ion Engine. 01645_ Acquired 12 matter. 01647_ Acquired Terrain Scanner. 01649_ R-06 Scavenger collects Welding Torch. 01691_ K-01 Serf collects debris. 01716_ JQ-VO3(g) Carbon-fiber Leg severed. 01717_ G-34 Mercenary destroyed. 01721_ JQ-VO3(g) destroyed. 01722_ Acquired derelict log, extracted data. World map updated: -9/Materials. 01786_ Wheel destroyed. 01789_ Com. Wheel destroyed. Map ----- +----------------------------------------------------+ | | | | | | | | | ????????????????????????????????????? | | ????????????????????????????????????? | | ????????????????????????????????????? | | ????????????????????????????????????? | | ????????????????????????????????????? | | ????????????????????????????????????? | | ????????????????????????????????????? | | ????????????????????????????????????? | | ????????????????????????????????????? | | ????????????????????????????????????? | | ????????????????????????????????????? | | ??????????#????????????#?#??????????? | | ???????????????????????# ???????????? | | ??????????????????????? ???????????? | | ???????????????????????# ???????????? | | ???????#??????????#????# ???????????? | | ???????????????????????# ???????????? | | ????????????????????#### ??????????#? | | #?#???????#?##### ### ???????????? | | #?????????### ## t ##?????????? | | #??????????# ##??# ##????#???? | | #??#???????# #### @ ##???????? | | #??????##### ### #???????? | | #????### ### #???#???? | | #???## #?## ls#???????? | | #??## #### ##?### ss#?????#?? | | #### ##??# ###??#?# s##??????? | | *!=[ ###???# #??????## g ##?????? | | %=%= ##?????# #???????## ###???? | | ## ##??????# #????????## ##??? | | #### #???#???# #?????????# ##?? | | ???# #???????# #??????#### #??? | | ???# #??????## #???#??# ##??? | | ???# #???????# #??????# ## ##???? | | ???# #???????# ######## ## #????? | | ???# #???????# #????? | | ??? #?#?????# ##????? | | ??? #???????############# ###?????? | | ??? ##???????????????????? #???????? | | ?? ?????? ?????????????? #???????? | | ?? #?##????????#?????????###???????? | | ?? #????????????????????????????????? | | ????????????????????????????????????? | | ?????????????????????#????????????#?? | | ??????????????????????????#??#??????? | | ????????????????????????????????????? | +----------------------------------------------------+ Best States ------------- Heat Dissipation 28 Energy Generation 14 Energy Capacity 250 Matter Stores 300 Matter Capacity 300 Sight Range 16 Terrain Scan Range 14 Terrain Scan Density 10 Armor Coverage 225 Core Shielding 20 Evasion (%) 45 Recoil Reduction 2 Item Schematics ----------------- None Robot Schematics ------------------ None Fabricated ------------ Nothing Repaired ---------- Nothing Alien Tech Used ----------------- None Achievements -------------- Let's See Who's Tougher Challenges ------------ None Game ------ Seed CoreIonicShovel Manual? 0 Play Time 00:20:36 Cumulative 5.7 hours Start 2025.05.17 @ 09:58:54 End 2025.05.17 @ 10:17:50 Sessions 1 Manual Loads 0 Difficulty Rogue Special Mode None Game No. 6 Rogue 6 Adventurer 0 Explorer 0 Win Type - Total 0 Types 0/0/0/0/0/0/0/0/0/0 Lore% 1 Gallery% 7 Achievement% 7 Wizard Run 0 Options --------- Layout 1 ASCII 0 Keyboard 1 Movement Vi Keybinds 0 Fullscreen 1 Font 24/Smallcaps Map View 50x35 Zoom Use 0% Tactical HUD 1 Map Filters NONE Filters NONE Steam 1 RUN: bdd2f3f2-6200-4c22-a9d3-1321d5b6190e